fUST/lending_fUST_20250724
["ID","MTS","AMOUNT","RATE_DAILY","PERIOD"]
[374425007,1753297847072,-460.0,0.00019997,2]
[374425008,1753297847082,-460.0,0.00019997,2]
[374425009,1753297847092,-460.0,0.00019997,2]
[374425010,1753297847101,-460.0,0.00019997,2]
[374425011,1753297847111,-460.0,0.00019997,2]
[374425012,1753297847120,-460.0,0.00019997,2]
[374425013,1753297847130,-460.0,0.00019997,2]
[374425014,1753297847139,-460.0,0.00019998,2]
[374425015,1753297847148,-460.0,0.00019998,2]
[374425016,1753297847160,-460.0,0.00019998,2]
[374425017,1753297847169,-460.0,0.00019998,2]
[374425018,1753297847179,-460.0,0.00019998,2]
[374425019,1753297847188,-460.0,0.00019998,2]
[374425020,1753297847197,-460.0,0.00019998,2]
[374425021,1753297847206,-460.0,0.00019998,2]
[374425022,1753297847216,-460.0,0.00019998,2]
[374425023,1753297847228,-460.0,0.00019998,2]
[374425024,1753297847238,-460.0,0.00019998,2]
[374425025,1753297847247,-500.0,0.00019998,2]
[374425026,1753297847256,-506.68426442,0.00020023,2]
[374425027,1753297847266,-460.0,0.00020041,2]
[374425028,1753297847275,-1883.57,0.00020041,2]
[374425029,1753297847283,-460.0,0.00020042,2]
[374425030,1753297847291,-668.27,0.00020042,2]
[374425031,1753297847303,-297.00477,0.00020187,2]
[374425032,1753297847312,-192.19,0.00020262,3]
[374425033,1753297847321,-460.0,0.00020269,2]
[374425034,1753297847330,-460.0,0.00020269,2]
[374425035,1753297847339,-460.0,0.00020269,2]
[374425036,1753297847348,-906.63,0.00020269,2]
[374425037,1753297847357,-460.0,0.00020269,2]
[374425038,1753297847366,-460.0,0.0002027,2]
[374425039,1753297847375,-460.0,0.0002027,2]
[374425040,1753297847384,-1458.84,0.0002027,2]
[374425041,1753297847394,-460.0,0.0002027,2]
[374425042,1753297847403,-460.0,0.0002027,2]
[374425043,1753297847416,-599.14,0.0002027,2]
[374425044,1753297847425,-465.47,0.0002027,2]
[374425045,1753297847434,-460.0,0.0002027,2]
[374425046,1753297847444,-817.63,0.0002027,2]
[374425047,1753297847453,-460.0,0.0002027,2]
[374425048,1753297847463,-237.26668909,0.0002027,2]
[374425049,1753297847472,-711.46,0.0002027,2]
[374425050,1753297847481,-460.0,0.0002027,2]
[374425051,1753297847490,-460.0,0.0002027,2]
[374425052,1753297847499,-460.0,0.0002027,2]
[374425053,1753297847508,-460.0,0.0002027,2]
[374425054,1753297847518,-460.0,0.0002027,2]
[374425055,1753297847528,-460.0,0.0002027,2]
[374425056,1753297847537,-534.64,0.0002027,2]
[374425057,1753297847546,-460.0,0.0002027,2]
[374425058,1753297847556,-460.0,0.00020271,2]
[374425059,1753297847565,-460.0,0.00020271,2]
[374425060,1753297847575,-460.0,0.00020271,2]
[374425061,1753297847584,-460.0,0.00020271,2]
[374425062,1753297847593,-460.0,0.00020271,2]
[374425063,1753297847602,-460.0,0.00020271,2]
[374425064,1753297847612,-460.0,0.00020271,2]
[374425065,1753297847621,-460.0,0.00020271,2]
[374425066,1753297847630,-460.0,0.00020271,2]
[374425067,1753297847640,-540.06,0.00020271,2]
[374425068,1753297847649,-460.0,0.00020271,2]
[374425069,1753297847659,-789.87,0.00020271,2]
[374425070,1753297847669,-460.0,0.00020271,2]
[374425071,1753297847678,-192.9131683,0.00020271,2]
[374425072,1753297847688,-460.0,0.00020271,2]
[374425073,1753297847697,-460.0,0.00020271,2]
[374425074,1753297847707,-460.0,0.00020271,2]
[374425075,1753297847717,-460.0,0.00020272,2]
[374425076,1753297847727,-460.0,0.00020272,2]
[374425077,1753297847737,-1883.57,0.00020315,2]
[374425078,1753297847746,-460.0,0.00020316,2]
[374425079,1753297847756,-668.27,0.00020316,2]
[374425080,1753297847766,-558.81630607,0.00020458,2]
[374425081,1753297847775,-506.51457,0.00020521,2]
[374425082,1753297847784,-1000.0,0.00020521,2]
[374425083,1753297847793,-1000.0,0.00020521,2]
[374425084,1753297847802,-159.46,0.00020543,2]
[374425085,1753297847812,-460.0,0.00020543,2]
[374425086,1753297847823,-460.0,0.00020543,2]
[374425087,1753297847832,-906.63,0.00020543,2]
[374425088,1753297847841,-460.0,0.00020543,2]
[374425089,1753297847851,-316.3,0.00020544,2]
[374425090,1753297847861,-1458.84,0.00020544,2]
[374425091,1753297847870,-599.14,0.00020544,2]
[374425092,1753297847880,-465.47,0.00020544,2]
[374425093,1753297847889,-460.0,0.00020544,2]
[374425094,1753297847898,-817.63,0.00020544,2]
[374425095,1753297847909,-460.0,0.00020544,2]
[374425096,1753297847918,-711.46,0.00020544,2]
[374425097,1753297847927,-460.0,0.00020544,2]
[374425098,1753297847936,-460.0,0.00020544,2]
[374425099,1753297847945,-460.0,0.00020544,2]
[374425100,1753297847954,-460.0,0.00020544,2]
[374425101,1753297847963,-393.6865947,0.00020544,2]
[374425102,1753297847972,-460.0,0.00020545,2]
[374425103,1753297847981,-460.0,0.00020545,2]
[374425104,1753297847990,-460.0,0.00020545,2]
[374425105,1753297847999,-460.0,0.00020545,2]
[374425106,1753297848008,-460.0,0.00020545,2]
[374425107,1753297848017,-460.0,0.00020545,2]
[374425108,1753297848026,-789.87,0.00020545,2]
[374425109,1753297848036,-460.0,0.00020545,2]
[374425110,1753297848045,-460.0,0.00020545,2]
[374425111,1753297848054,-460.0,0.00020545,2]
[374425112,1753297848063,-566.37,0.00020546,2]
[374425113,1753297848071,-460.0,0.00020546,2]
[374425114,1753297848080,-256.1,0.00020546,2]
[374425115,1753297848089,-613.77,0.00020546,2]
[374425116,1753297848098,-544.632193,0.00020546,2]
[374425117,1753297848107,-1883.57,0.00020589,2]
[374425118,1753297848116,-460.0,0.0002059,2]
[374425119,1753297848125,-668.27,0.0002059,2]
[374425120,1753297848134,-1322.31291531,0.00020719,2]
[374425121,1753297848143,-710.474,0.00020729,2]
[374425122,1753297848152,-429.674968,0.0002076,2]
[374425123,1753297848162,-429.674968,0.0002076,2]
[374425124,1753297848171,-429.674968,0.0002076,2]
[374425125,1753297848180,-429.674968,0.0002076,2]
[374425126,1753297848188,-429.674968,0.0002076,2]
[374425127,1753297848197,-476.696448,0.00020809,10]
[374425128,1753297848206,-460.0,0.00020817,2]
[374425129,1753297848215,-494.89,0.00020817,2]
[374425130,1753297848228,-906.63,0.00020817,2]
[374425131,1753297848237,-1458.84,0.00020818,2]
[374425132,1753297848246,-599.14,0.00020818,2]
[374425133,1753297848254,-465.47,0.00020818,2]
[374425134,1753297848264,-460.0,0.00020818,2]
[374425135,1753297848272,-817.63,0.00020818,2]
[374425136,1753297848281,-711.46,0.00020818,2]
[374425137,1753297848290,-277.37,0.00020818,2]
[374425138,1753297848299,-460.0,0.00020818,2]
[374425139,1753297848308,-226.41,0.00020818,2]
[374425140,1753297848318,-460.0,0.00020818,2]
[374425141,1753297848327,-163.14,0.00020819,2]
[374425142,1753297848335,-283.28,0.00020819,2]
[374425143,1753297848345,-343.43,0.00020819,2]
[374425144,1753297848354,-483.29,0.00020819,2]
[374425145,1753297848363,-789.87,0.00020819,2]
[374425146,1753297848371,-249.95,0.00020819,2]
[374425147,1753297848380,-460.0,0.00020819,2]
[374425148,1753297848389,-566.37,0.0002082,2]
[374425149,1753297848398,-460.0,0.0002082,2]
[374425150,1753297848408,-613.77,0.0002082,2]
[374425151,1753297848417,-1883.57,0.00020863,2]
[374425152,1753297848427,-460.0,0.00020864,2]
[374425153,1753297848436,-668.27,0.00020864,2]
[374425154,1753297848445,-160.0,0.00020943,2]
[374425155,1753297848454,-840.06856235,0.00020943,2]
[374425156,1753297848464,-160.0,0.00020943,2]
[374425157,1753297848473,-526.15909479,0.00020943,2]
[374425158,1753297848482,-160.0,0.00020943,2]
[374425159,1753297848491,-160.0,0.00020943,2]
[374425160,1753297848500,-476.696448,0.00020943,2]
[374425161,1753297848509,-215.84326551,0.00020943,2]
[374425162,1753297848518,-160.0,0.00020943,2]
[374425163,1753297848528,-160.0,0.00020943,2]
[374425164,1753297848537,-231.11583447,0.00020943,2]
[374425165,1753297848546,-160.0,0.00020943,2]
[374425166,1753297848556,-214.67886746,0.00020943,2]
[374425167,1753297848565,-160.0,0.00020943,2]
[374425168,1753297848575,-12622.36869388,0.00020943,2]
[374425169,1753297848585,-160.0,0.00020943,2]
[374425170,1753297848594,-396.33493,0.00021,2]
[374425171,1753297848604,-396.33493,0.00021,2]
[374425172,1753297848613,-186.536229,0.00021,2]
[374425173,1753297848622,-186.536229,0.00021,2]
[374425174,1753297848631,-151.0,0.00021,2]
[374425175,1753297848641,-198.737532,0.00021,2]
[374425176,1753297848650,-198.737532,0.00021,2]
[374425177,1753297848661,-151.0,0.00021,2]
[374425178,1753297848798,-426.486423,0.00021019,2]
[374425179,1753297848808,-426.486423,0.00021019,2]
[374425180,1753297848817,-500.0,0.00021068,2]
[374425181,1753297848827,-178.87,0.00021083,3]
[374425182,1753297848837,-357.73,0.00021084,3]
[374425183,1753297848846,-906.63,0.00021091,2]
[374425184,1753297848856,-1458.84,0.00021092,2]
[374425185,1753297848865,-599.14,0.00021092,2]
[374425186,1753297848875,-465.47,0.00021092,2]
[374425187,1753297848884,-460.0,0.00021092,2]
[374425188,1753297848893,-817.63,0.00021092,2]
[374425189,1753297848903,-711.46,0.00021092,2]
[374425190,1753297848915,-460.0,0.00021092,2]
[374425191,1753297848924,-460.0,0.00021092,2]
[374425192,1753297848934,-789.87,0.00021093,2]
[374425193,1753297848944,-460.0,0.00021093,2]
[374425194,1753297848954,-566.37,0.00021094,2]
[374425195,1753297848963,-613.77,0.00021094,2]
[374425196,1753297848972,-1883.57,0.00021137,2]
[374425197,1753297848981,-460.0,0.00021138,2]
[374425198,1753297848991,-668.27,0.00021138,2]
[374425199,1753297849000,-160.0,0.00021162,2]
[374425200,1753297849010,-500.0,0.00021164,2]
[374425201,1753297849019,-715.47,0.00021168,3]
[374425202,1753297849029,-426.486423,0.00021178,2]
[374425203,1753297849039,-426.486423,0.00021178,2]
[374425204,1753297849049,-426.486423,0.00021178,2]
[374425205,1753297849059,-426.486423,0.00021178,2]
[374425206,1753297849068,-396.33493,0.00021178,2]
[374425207,1753297849077,-396.33493,0.00021178,2]
[374425208,1753297849087,-396.33493,0.00021178,2]
[374425209,1753297849096,-396.33493,0.00021178,2]
[374425210,1753297849106,-186.536229,0.00021178,2]
[374425211,1753297849115,-186.536229,0.00021178,2]
[374425212,1753297849125,-186.536229,0.00021178,2]
[374425213,1753297849134,-186.536229,0.00021178,2]
[374425214,1753297849144,-151.0,0.00021178,2]
[374425215,1753297849156,-151.0,0.00021178,2]
[374425216,1753297849166,-198.737532,0.00021178,2]
[374425217,1753297849176,-198.737532,0.00021178,2]
[374425218,1753297849186,-198.737532,0.00021178,2]
[374425219,1753297849196,-198.737532,0.00021178,2]
[374425220,1753297849206,-151.0,0.00021178,2]
[374425221,1753297849218,-151.0,0.00021178,2]
[374425222,1753297849231,-967.40701884,0.00021178,2]
[374425223,1753297849240,-967.40701884,0.00021178,2]
[374425224,1753297849250,-223.0315306,0.00021355,2]
[374425225,1753297849259,-536.61,0.00021356,3]
[374425226,1753297849269,-906.63,0.00021365,2]
[374425227,1753297849280,-1458.84,0.00021366,2]
[374425228,1753297849290,-599.14,0.00021366,2]
[374425229,1753297849300,-465.47,0.00021366,2]
[374425230,1753297849309,-460.0,0.00021366,2]
[374425231,1753297849319,-817.63,0.00021366,2]
[374425232,1753297849329,-711.46,0.00021366,2]
[374425233,1753297849338,-460.0,0.00021366,2]
[374425234,1753297849347,-416.31,0.00021366,2]
[374425235,1753297849357,-789.87,0.00021367,2]
[374425236,1753297849366,-460.0,0.00021367,2]
[374425237,1753297849375,-566.37,0.00021368,2]
[374425238,1753297849384,-613.77,0.00021368,2]
[374425239,1753297849394,-396.33493,0.00021369,2]
[374425240,1753297849403,-396.33493,0.00021369,2]
[374425241,1753297849415,-186.536229,0.00021369,2]
[374425242,1753297849424,-186.536229,0.00021369,2]
[374425243,1753297849433,-151.0,0.00021369,2]
[374425244,1753297849443,-198.737532,0.00021369,2]
[374425245,1753297849452,-198.737532,0.00021369,2]
[374425246,1753297849462,-151.0,0.00021369,2]
[374425247,1753297849472,-426.486423,0.0002137,2]
[374425248,1753297849481,-426.486423,0.0002137,2]
[374425249,1753297849490,-1883.57,0.00021411,2]
[374425250,1753297849500,-491.6,0.00021412,2]
[374425251,1753297849509,-460.0,0.00021412,2]
[374425252,1753297849519,-668.27,0.00021412,2]
[374425253,1753297849528,-1158.7,0.00021554,5]
[374425254,1753297849538,-906.63,0.00021639,2]
[374425255,1753297849547,-1458.84,0.0002164,2]
[374425256,1753297849556,-599.14,0.0002164,2]
[374425257,1753297849566,-465.47,0.0002164,2]
[374425258,1753297849575,-460.0,0.0002164,2]
[374425259,1753297849584,-817.63,0.0002164,2]
[374425260,1753297849594,-711.46,0.0002164,2]
[374425261,1753297849603,-366.05189118,0.0002164,2]
[374425262,1753297849612,-789.87,0.00021641,2]
[374425263,1753297849622,-460.0,0.00021641,2]
[374425264,1753297849631,-566.37,0.00021642,2]
[374425265,1753297849641,-613.77,0.00021642,2]
[374425266,1753297849650,-396.33493,0.00021643,2]
[374425267,1753297849661,-396.33493,0.00021643,2]
[374425268,1753297849671,-186.536229,0.00021643,2]
[374425269,1753297849681,-186.536229,0.00021643,2]
[374425270,1753297849691,-151.0,0.00021643,2]
[374425271,1753297849700,-198.737532,0.00021643,2]
[374425272,1753297849709,-198.737532,0.00021643,2]
[374425273,1753297849719,-151.0,0.00021643,2]
[374425274,1753297849729,-312.568226,0.00021676,2]
[374425275,1753297849739,-1262.28255145,0.00021676,2]
[374425276,1753297849748,-154.0,0.00021676,2]
[374425277,1753297849757,-154.0,0.00021676,2]
[374425278,1753297849766,-154.0,0.00021676,2]
[374425279,1753297849775,-211.66011307,0.00021676,2]
[374425280,1753297849784,-324.0,0.00021676,2]
[374425281,1753297849793,-324.0,0.00021676,2]
[374425282,1753297849802,-189.9008288,0.00021676,2]
[374425283,1753297849811,-1883.57,0.00021685,2]
[374425284,1753297849820,-491.6,0.00021686,2]
[374425285,1753297849830,-460.0,0.00021686,2]
[374425286,1753297849839,-668.27,0.00021686,2]
[374425287,1753297849848,-260.0,0.00021709,2]
[374425288,1753297849858,-429.674968,0.00021719,2]
[374425289,1753297849867,-429.674968,0.00021719,2]
[374425290,1753297849876,-173.7448287,0.00021719,2]
[374425291,1753297849885,-1158.7,0.00021876,5]
[374425292,1753297849895,-426.486423,0.000219,2]
[374425293,1753297849904,-426.486423,0.000219,2]
[374425294,1753297849915,-906.63,0.00021913,2]
[374425295,1753297849924,-1458.84,0.00021914,2]
[374425296,1753297849933,-599.14,0.00021914,2]
[374425297,1753297849943,-465.47,0.00021914,2]
[374425298,1753297849952,-460.0,0.00021914,2]
[374425299,1753297849962,-817.63,0.00021914,2]
[374425300,1753297849972,-711.46,0.00021914,2]
[374425301,1753297849982,-789.87,0.00021915,2]
[374425302,1753297849992,-399.11977687,0.00021915,2]
[374425303,1753297850001,-566.37,0.00021916,2]
[374425304,1753297850011,-613.77,0.00021916,2]
[374425305,1753297850019,-396.33493,0.00021917,2]
[374425306,1753297850029,-396.33493,0.00021917,2]
[374425307,1753297850039,-186.536229,0.00021917,2]
[374425308,1753297850049,-186.536229,0.00021917,2]
[374425309,1753297850058,-151.0,0.00021917,2]
[374425310,1753297850067,-198.737532,0.00021917,2]
[374425311,1753297850076,-198.737532,0.00021917,2]
[374425312,1753297850086,-151.0,0.00021917,2]
[374425313,1753297850095,-1883.57,0.00021959,2]
[374425314,1753297850104,-491.6,0.0002196,2]
[374425315,1753297850114,-267.05743507,0.0002196,2]
[374425316,1753297850123,-668.27,0.0002196,2]
[374425317,1753297850133,-426.486423,0.0002199,7]
[374425318,1753297850142,-426.486423,0.0002199,7]
[374425319,1753297850151,-426.486423,0.00022,7]
[374425320,1753297850163,-426.486423,0.00022,7]
[374425321,1753297850172,-426.486423,0.00022,7]
[374425322,1753297850181,-426.486423,0.00022,7]
[374425323,1753297850191,-396.33493,0.00022,7]
[374425324,1753297850201,-396.33493,0.00022,7]
[374425325,1753297850210,-396.33493,0.00022,7]
[374425326,1753297850221,-396.33493,0.00022,7]
[374425327,1753297850234,-186.536229,0.00022,7]
[374425328,1753297850243,-186.536229,0.00022,7]
[374425329,1753297850252,-186.536229,0.00022,7]
[374425330,1753297850262,-186.536229,0.00022,7]
[374425331,1753297850271,-151.0,0.00022,7]
[374425332,1753297850281,-151.0,0.00022,7]
[374425333,1753297850290,-198.737532,0.00022,7]
[374425334,1753297850300,-198.737532,0.00022,7]
[374425335,1753297850309,-198.737532,0.00022,7]
[374425336,1753297850319,-198.737532,0.00022,7]
[374425337,1753297850330,-198.737532,0.00022,7]
[374425338,1753297850341,-198.737532,0.00022,7]
[374425339,1753297850351,-151.0,0.00022,7]
[374425340,1753297850360,-151.0,0.00022,7]
[374425341,1753297850369,-2534.34,0.00022,7]
[374425342,1753297850379,-178.0,0.00022,2]
[374425343,1753297850389,-355.393846,0.0002204,8]
[374425344,1753297850399,-396.33493,0.00022085,7]
[374425345,1753297850408,-396.33493,0.00022085,7]
[374425346,1753297850417,-186.536229,0.00022085,7]
[374425347,1753297850426,-186.536229,0.00022085,7]
[374425348,1753297850435,-185.0,0.00022085,7]
[374425349,1753297850444,-12622.36869388,0.00022085,7]
[374425350,1753297850453,-178.2325116,0.0002213,2]
[374425351,1753297850462,-159.9205653,0.0002213,2]
[374425352,1753297850472,-153.0,0.00022174,2]
[374425353,1753297850481,-3521.7230838,0.00022176,2]
[374425354,1753297850490,-906.63,0.00022187,2]
[374425355,1753297850500,-1458.84,0.00022188,2]
[374425356,1753297850509,-599.14,0.00022188,2]
[374425357,1753297850518,-465.47,0.00022188,2]
[374425358,1753297850527,-151.0,0.00022188,7]
[374425359,1753297850536,-460.0,0.00022188,2]
[374425360,1753297850546,-817.63,0.00022188,2]
[374425361,1753297850555,-711.46,0.00022188,2]
[374425362,1753297850564,-728.374551,0.00022188,7]
[374425363,1753297850575,-728.374551,0.00022188,7]
[374425364,1753297850584,-152.198246,0.00022188,7]
[374425365,1753297850594,-789.87,0.00022189,2]
[374425366,1753297850603,-566.37,0.0002219,2]
[374425367,1753297850612,-613.77,0.0002219,2]
[374425368,1753297850622,-426.486423,0.00022191,7]
[374425369,1753297850631,-426.486423,0.00022191,7]
[374425370,1753297850640,-151.0,0.00022191,7]
[374425371,1753297850650,-151.0,0.00022191,7]
[374425372,1753297850661,-151.0,0.00022191,7]
[374425373,1753297850670,-204.853959,0.00022191,2]
[374425374,1753297850679,-151.0,0.00022191,7]
[374425375,1753297850688,-178.0,0.00022192,7]
[374425376,1753297850697,-1158.7,0.00022198,5]
[374425377,1753297850707,-1883.57,0.00022233,2]
[374425378,1753297850715,-198.737532,0.00022234,7]
[374425379,1753297850725,-198.73754,0.00022234,7]
[374425380,1753297850735,-491.6,0.00022234,2]
[374425381,1753297850744,-476.696448,0.00022234,7]
[374425382,1753297850753,-668.27,0.00022234,2]
[374425383,1753297850762,-218.78,0.00022235,2]
[374425384,1753297850771,-3432.7107726,0.00022247,2]
[374425385,1753297850780,-360.0,0.00022257,2]
[374425386,1753297850789,-396.33493,0.00022276,7]
[374425387,1753297850798,-396.334925,0.00022276,7]
[374425388,1753297850807,-186.536229,0.00022276,7]
[374425389,1753297850817,-186.536231,0.00022276,7]
[374425390,1753297850827,-2670.718592,0.00022325,7]
[374425391,1753297850836,-2670.718592,0.00022325,7]
[374425392,1753297850845,-848.78040434,0.000224,2]
[374425393,1753297850854,-1000.0,0.000224,2]
[374425394,1753297850863,-357.74,0.00022453,3]
[374425395,1753297850872,-715.46,0.00022454,3]
[374425396,1753297850881,-906.63,0.00022461,2]
[374425397,1753297850890,-1458.84,0.00022462,2]
[374425398,1753297850899,-599.14,0.00022462,2]
[374425399,1753297850909,-465.47,0.00022462,2]
[374425400,1753297850918,-460.0,0.00022462,2]
[374425401,1753297850927,-817.63,0.00022462,2]
[374425402,1753297850937,-711.46,0.00022462,2]
[374425403,1753297850946,-789.87,0.00022463,2]
[374425404,1753297850955,-566.37,0.00022464,2]
[374425405,1753297850964,-613.77,0.00022464,2]
[374425406,1753297850973,-426.486423,0.00022465,7]
[374425407,1753297850982,-426.486424,0.00022465,7]
[374425408,1753297850993,-2142.91,0.00022465,2]
[374425409,1753297851003,-151.0,0.00022465,7]
[374425410,1753297851013,-151.0,0.00022465,7]
[374425411,1753297851022,-245.0,0.00022466,2]
[374425412,1753297851031,-492.0,0.00022466,2]
[374425413,1753297851040,-431.0,0.00022466,2]
[374425414,1753297851049,-151.0,0.0002247,7]
[374425415,1753297851059,-151.0,0.0002247,7]
[374425416,1753297851068,-594.79640088,0.00022473,2]
[374425417,1753297851077,-500.94168668,0.00022473,2]
[374425418,1753297851086,-500.0,0.00022473,2]
[374425419,1753297851095,-500.0,0.00022473,2]
[374425420,1753297851104,-500.0,0.00022473,2]
[374425421,1753297851114,-500.0,0.00022473,2]
[374425422,1753297851123,-500.0,0.00022473,2]
[374425423,1753297851132,-500.0,0.00022473,2]
[374425424,1753297851141,-500.0,0.00022473,2]
[374425425,1753297851151,-156.64231511,0.00022473,2]
[374425426,1753297851162,-500.0,0.00022473,2]
[374425427,1753297851171,-500.0,0.00022473,2]
[374425428,1753297851180,-501.11731388,0.00022473,2]
[374425429,1753297851190,-500.0,0.00022473,2]
[374425430,1753297851199,-500.89543393,0.00022473,2]
[374425431,1753297851208,-495.16783004,0.00022473,2]
[374425432,1753297851220,-500.0,0.00022473,2]
[374425433,1753297851230,-500.0,0.00022473,2]
[374425434,1753297851239,-165.91715819,0.00022473,2]
[374425435,1753297851248,-500.0,0.00022473,2]
[374425436,1753297851257,-500.0,0.00022473,2]
[374425437,1753297851268,-500.0,0.00022473,2]
[374425438,1753297851278,-500.0,0.00022473,2]
[374425439,1753297851287,-500.0,0.00022473,2]
[374425440,1753297851296,-500.0,0.00022473,2]
[374425441,1753297851305,-500.0,0.00022473,2]
[374425442,1753297851315,-500.0,0.00022473,2]
[374425443,1753297851324,-319.07516749,0.0002249,7]
[374425444,1753297851334,-521.933324,0.0002249,7]
[374425445,1753297851343,-151.0,0.0002249,7]
[374425446,1753297851353,-459.749028,0.0002249,7]
[374425447,1753297851362,-459.749028,0.0002249,7]
[374425448,1753297851371,-151.0,0.0002249,7]
[374425449,1753297851381,-202.70416,0.0002249,7]
[374425450,1753297851391,-199.568237,0.0002249,7]
[374425451,1753297851400,-199.568241,0.0002249,7]
[374425452,1753297851410,-151.0,0.0002249,7]
[374425453,1753297851419,-151.0,0.0002249,7]
[374425454,1753297851430,-983.80374798,0.0002249,2]
[374425455,1753297851439,-193.119541,0.0002249,7]
[374425456,1753297851448,-728.374551,0.0002249,7]
[374425457,1753297851458,-728.374551,0.0002249,7]
[374425458,1753297851467,-151.0,0.0002249,7]
[374425459,1753297851476,-75131.73636979,0.000225,2]
[374425460,1753297851486,-1974.34638018,0.000225,15]
[374425461,1753297851495,-151.0,0.000225,7]
[374425462,1753297851505,-151.0,0.000225,7]
[374425463,1753297851514,-151.0,0.000225,7]
[374425464,1753297851523,-151.0,0.000225,7]
[374425465,1753297851532,-151.0,0.000225,7]
[374425466,1753297851542,-151.0,0.000225,7]
[374425467,1753297851552,-151.0,0.000225,7]
[374425468,1753297851562,-151.0,0.000225,7]
[374425469,1753297851572,-151.0,0.000225,7]
[374425470,1753297851581,-151.0,0.000225,7]
[374425471,1753297851591,-151.0,0.000225,7]
[374425472,1753297851600,-151.0,0.000225,7]
[374425473,1753297851610,-151.0,0.000225,7]
[374425474,1753297851620,-151.0,0.000225,7]
[374425475,1753297851629,-151.0,0.000225,7]
[374425476,1753297851639,-151.0,0.000225,7]
[374425477,1753297851648,-151.0,0.000225,7]
[374425478,1753297851658,-392.836313,0.000225,7]
[374425479,1753297851667,-392.836313,0.000225,7]
[374425480,1753297851676,-249.242645,0.000225,7]
[374425481,1753297851685,-238.714801,0.000225,7]
[374425482,1753297851695,-238.714801,0.000225,7]
[374425483,1753297851704,-238.714801,0.000225,7]
[374425484,1753297851713,-238.714801,0.000225,7]
[374425485,1753297851723,-151.0,0.000225,7]
[374425486,1753297851732,-151.0,0.000225,7]
[374425487,1753297851742,-151.0,0.000225,7]
[374425488,1753297851751,-151.0,0.000225,7]
[374425489,1753297851760,-250.500295,0.000225,7]
[374425490,1753297851769,-250.500295,0.000225,7]
[374425491,1753297851779,-151.0,0.000225,7]
[374425492,1753297851788,-151.0,0.000225,2]
[374425493,1753297851797,-151.0,0.000225,7]
[374425494,1753297851807,-170.347997,0.000225,7]
[374425495,1753297851816,-170.347997,0.000225,7]
[374425496,1753297851826,-714.955063,0.000225,7]
[374425497,1753297851835,-714.955063,0.000225,7]
[374425498,1753297851958,-3858.88479,0.000225,7]
[374425499,1753297851968,-3858.88479,0.000225,7]
[374425500,1753297851978,-151.0,0.000225,7]
[374425501,1753297851987,-521.933324,0.000225,7]
[374425502,1753297851996,-521.933324,0.000225,7]
[374425503,1753297852006,-151.0,0.000225,7]
[374425504,1753297852016,-459.749028,0.000225,7]
[374425505,1753297852025,-459.749028,0.000225,7]
[374425506,1753297852035,-151.0,0.000225,7]